lending/lending_fUSD_20240110
["ID","MTS","AMOUNT","RATE_DAILY","PERIOD"]
[311089399,1704901852322,-500.0,0.00030684,2]
[311089400,1704901852331,-500.0,0.00030684,2]
[311089401,1704901852341,-500.0,0.00030684,2]
[311089402,1704901852350,-500.0,0.00030684,2]
[311089403,1704901852359,-352.82066709,0.00030684,2]
[311089404,1704901852369,-1173.1,0.00030684,2]
[311089405,1704901852378,-977.57,0.00030684,2]
[311089406,1704901852387,-500.0,0.00030684,2]
[311089407,1704901852396,-500.0,0.00030684,2]
[311089408,1704901852405,-500.0,0.00030684,2]
[311089409,1704901852415,-905.27,0.00030684,2]
[311089410,1704901852425,-500.0,0.00030684,2]
[311089411,1704901852434,-2184.67,0.00030684,2]
[311089412,1704901852443,-539.72,0.00030684,2]
[311089413,1704901852452,-500.0,0.00030684,2]
[311089414,1704901852462,-500.0,0.00030684,2]
[311089415,1704901852471,-2851.32,0.00030684,2]
[311089416,1704901852480,-554.29,0.00030684,2]
[311089417,1704901852489,-1084.11,0.00030684,2]
[311089418,1704901852499,-743.97,0.00030684,2]
[311089419,1704901852508,-2290.02,0.00030684,2]
[311089420,1704901852518,-500.0,0.00030684,2]
[311089421,1704901852527,-652.69,0.00030684,2]
[311089422,1704901852537,-392.61316247,0.00030684,2]
[311089423,1704901852546,-3550.06,0.00030684,2]
[311089424,1704901852555,-500.0,0.00030684,2]
[311089425,1704901852564,-2468.23,0.00030684,2]
[311089426,1704901852573,-741.58,0.00030684,2]
[311089427,1704901852583,-500.0,0.00030684,2]
[311089428,1704901852592,-1013.12,0.00030684,2]
[311089429,1704901852602,-2755.49,0.00030684,2]
[311089430,1704901852611,-500.0,0.00030684,2]
[311089431,1704901852620,-1367.5,0.00030684,2]
[311089432,1704901852629,-523.18,0.00030684,2]
[311089433,1704901852639,-606.41,0.00030684,2]
[311089434,1704901852648,-1010.49,0.00030684,2]
[311089435,1704901852657,-1214.0,0.00030684,2]
[311089436,1704901852666,-500.0,0.00030684,2]
[311089437,1704901852675,-500.0,0.00030684,2]
[311089438,1704901852684,-500.0,0.00030684,2]
[311089439,1704901852693,-500.0,0.00030684,2]
[311089440,1704901852702,-1052.82,0.00030684,2]
[311089441,1704901852712,-1111.49,0.00030684,2]
[311089442,1704901852721,-22537.3,0.00030684,2]
[311089443,1704901852730,-652.84,0.00030684,2]
[311089444,1704901852739,-517.3,0.00030684,2]
[311089445,1704901852749,-500.0,0.00030684,2]
[311089446,1704901852758,-200.0,0.00030684,2]
[311089447,1704901852767,-1027.93,0.00030684,2]
[311089448,1704901852776,-500.0,0.00030684,2]
[311089449,1704901852785,-500.0,0.00030684,2]
[311089450,1704901852795,-619.25,0.00030684,2]
[311089451,1704901852804,-500.0,0.00030684,2]
[311089452,1704901852813,-500.0,0.00030684,2]
[311089453,1704901852823,-540.69,0.00030684,2]
[311089454,1704901852832,-500.0,0.00030684,2]
[311089455,1704901852842,-500.0,0.00030684,2]
[311089456,1704901852851,-500.0,0.00030684,2]
[311089457,1704901852860,-531.22,0.00030684,2]
[311089458,1704901852870,-822.79,0.00030684,2]
[311089459,1704901852879,-949.96,0.00030684,2]
[311089460,1704901852889,-561.93,0.00030684,2]
[311089461,1704901852898,-841.87,0.00030684,2]
[311089462,1704901852908,-500.0,0.00030684,2]
[311089463,1704901852917,-4149.02,0.00030684,2]
[311089464,1704901852926,-500.0,0.00030684,2]
[311089465,1704901852935,-500.0,0.00030684,2]
[311089466,1704901852944,-500.0,0.00030684,2]
[311089467,1704901852953,-500.0,0.00030684,2]
[311089468,1704901852963,-588.0,0.00030684,2]
[311089469,1704901852972,-1144.17,0.00030684,2]
[311089470,1704901852981,-500.0,0.00030684,2]
[311089471,1704901852991,-1384.54,0.00030684,2]
[311089472,1704901853001,-2853.73,0.00030684,2]
[311089473,1704901853011,-1585.1,0.00030684,2]
[311089474,1704901853020,-565.73,0.00030684,2]
[311089475,1704901853029,-518.12,0.00030684,2]
[311089476,1704901853038,-546.42,0.00030684,2]
[311089477,1704901853047,-500.0,0.00030684,2]
[311089478,1704901853056,-5771.71,0.00030684,2]
[311089479,1704901853066,-1094.06,0.00030684,2]
[311089480,1704901853075,-500.0,0.00030684,2]
[311089481,1704901853084,-1075.13,0.00030684,2]
[311089482,1704901853094,-500.0,0.00030684,2]
[311089483,1704901853104,-500.0,0.00030684,2]
[311089484,1704901853113,-1529.8,0.00030684,2]
[311089485,1704901853122,-704.92,0.00030684,2]
[311089486,1704901853132,-6554.84,0.00030684,2]
[311089487,1704901853141,-500.0,0.00030684,2]
[311089488,1704901853150,-500.0,0.00030684,2]
[311089489,1704901853159,-500.0,0.00030684,2]
[311089490,1704901853168,-500.0,0.00030684,2]
[311089491,1704901853177,-515.73,0.00030684,2]
[311089492,1704901853186,-515.69352682,0.00030684,4]
[311089493,1704901853196,-606.81,0.00030684,2]
[311089494,1704901853205,-500.0,0.00030684,2]
[311089495,1704901853214,-3847.89,0.00030684,2]
[311089496,1704901853223,-500.0,0.00030684,2]
[311089497,1704901853232,-1873.06,0.00030684,2]
[311089498,1704901853242,-1237.27,0.00030684,2]
[311089499,1704901853251,-500.0,0.00030684,2]
[311089500,1704901853260,-722.18,0.00030684,2]
[311089501,1704901853270,-500.0,0.00030684,2]
[311089502,1704901853279,-682.55,0.00030684,2]
[311089503,1704901853288,-1162.53,0.00030684,2]
[311089504,1704901853298,-890.2,0.00030684,2]
[311089505,1704901853306,-500.0,0.00030684,2]
[311089506,1704901853315,-500.0,0.00030684,2]
[311089507,1704901853324,-500.0,0.00030684,2]
[311089508,1704901853333,-308.94667297,0.00030684,2]
[311089509,1704901853343,-1171.63,0.00030684,2]
[311089510,1704901853352,-589.12,0.00030684,2]
[311089511,1704901853362,-838.5,0.00030684,2]
[311089512,1704901853371,-1149.89,0.00030684,2]
[311089513,1704901853380,-1201.37,0.00030684,2]
[311089514,1704901853389,-596.51,0.00030684,2]
[311089515,1704901853399,-1798.18,0.00030684,2]
[311089516,1704901853408,-1002.66,0.00030684,2]
[311089517,1704901853417,-1893.93,0.00030684,2]
[311089518,1704901853426,-860.47,0.00030684,2]
[311089519,1704901853436,-500.0,0.00030684,2]
[311089520,1704901853445,-500.0,0.00030684,2]
[311089521,1704901853454,-633.99,0.00030684,2]
[311089522,1704901853463,-542.38,0.00030684,2]
[311089523,1704901853472,-500.0,0.00030684,2]
[311089524,1704901853482,-3386.41,0.00030684,2]
[311089525,1704901853491,-756.19,0.00030684,2]
[311089526,1704901853501,-500.0,0.00030684,2]
[311089527,1704901853510,-500.0,0.00030684,2]
[311089528,1704901853519,-816.45,0.00030684,2]
[311089529,1704901853529,-500.0,0.00030684,2]
[311089530,1704901853538,-3242.4,0.00030684,2]
[311089531,1704901853547,-500.0,0.00030684,2]
[311089532,1704901853557,-500.0,0.00030684,2]
[311089533,1704901853566,-1694.82,0.00030684,2]
[311089534,1704901853576,-500.0,0.00030684,2]
[311089535,1704901853585,-1281.58,0.00030684,2]
[311089536,1704901853595,-500.0,0.00030684,2]
[311089537,1704901853604,-1700.0,0.000308,11]
[311089538,1704901853614,-300.0,0.00030826,2]
[311089539,1704901853623,-150.0,0.00030826,2]
[311089540,1704901853632,-1919.71483849,0.00030838,2]
[311089541,1704901853642,-450.0,0.00030847,3]
[311089542,1704901853651,-500.0,0.00030863,2]
[311089543,1704901853660,-2100.0,0.000309,11]
[311089544,1704901853669,-247.22115294,0.000309,2]
[311089545,1704901853679,-247.22115209,0.000309,2]
[311089546,1704901853689,-247.22115209,0.000309,2]
[311089547,1704901853698,-247.22115209,0.000309,2]
[311089548,1704901853707,-247.22115209,0.000309,2]
[311089549,1704901853716,-247.22115209,0.000309,2]
[311089550,1704901853724,-247.22115209,0.000309,2]
[311089551,1704901853734,-247.22115209,0.000309,2]
[311089552,1704901853744,-247.22115209,0.000309,2]
[311089553,1704901853753,-429.08,0.00030908,2]
[311089554,1704901853762,-5000.0,0.00030952,2]
[311089555,1704901853772,-20756.145484,0.00030955,2]
[311089556,1704901853782,-191.43794653,0.00030958,4]
[311089557,1704901853791,-500.0,0.00030958,2]
[311089558,1704901853801,-500.0,0.00030958,2]
[311089559,1704901853810,-500.0,0.00030958,2]
[311089560,1704901853819,-580.78,0.00030958,2]
[311089561,1704901853828,-500.0,0.00030958,2]
[311089562,1704901853837,-500.0,0.00030958,2]
[311089563,1704901853846,-500.0,0.00030958,2]
[311089564,1704901853855,-500.0,0.00030958,2]
[311089565,1704901853865,-500.0,0.00030958,2]
[311089566,1704901853874,-500.0,0.00030958,2]
[311089567,1704901853883,-500.0,0.00030958,2]
[311089568,1704901853892,-500.0,0.00030958,2]
[311089569,1704901853901,-325.35010209,0.00030958,2]
[311089570,1704901853910,-624.51,0.00030958,2]
[311089571,1704901853919,-769.6,0.00030958,2]
[311089572,1704901853928,-500.0,0.00030958,2]
[311089573,1704901853937,-646.9,0.00030958,2]
[311089574,1704901853946,-500.0,0.00030958,2]
[311089575,1704901853955,-530.33,0.00030958,2]
[311089576,1704901853968,-815.38,0.00030958,2]
[311089577,1704901853977,-500.0,0.00030958,2]
[311089578,1704901853986,-500.0,0.00030958,2]
[311089579,1704901853997,-233.92079603,0.00030958,2]
[311089580,1704901854006,-500.0,0.00030958,2]
[311089581,1704901854016,-500.0,0.00030958,2]
[311089582,1704901854025,-500.0,0.00030958,2]
[311089583,1704901854034,-500.0,0.00030958,2]
[311089584,1704901854043,-500.0,0.00030958,2]
[311089585,1704901854053,-500.0,0.00030958,2]
[311089586,1704901854063,-603.48,0.00030958,2]
[311089587,1704901854072,-755.23,0.00030958,2]
[311089588,1704901854082,-500.0,0.00030958,2]
[311089589,1704901854091,-550.99,0.00030958,2]
[311089590,1704901854100,-500.0,0.00030958,2]
[311089591,1704901854109,-500.0,0.00030958,2]
[311089592,1704901854118,-500.0,0.00030958,2]
[311089593,1704901854127,-224.30953459,0.00030958,2]
[311089594,1704901854136,-500.0,0.00030958,2]
[311089595,1704901854145,-500.0,0.00030958,2]
[311089596,1704901854154,-500.0,0.00030958,2]
[311089597,1704901854162,-500.0,0.00030958,2]
[311089598,1704901854172,-500.0,0.00030958,2]
[311089599,1704901854181,-536.78803955,0.00030958,2]
[311089600,1704901854190,-648.21502154,0.00030958,2]
[311089601,1704901854199,-500.0,0.00030958,2]
[311089602,1704901854209,-500.0,0.00030958,2]
[311089603,1704901854217,-500.0,0.00030958,2]
[311089604,1704901854226,-500.0,0.00030958,2]
[311089605,1704901854236,-800.14,0.00030958,2]
[311089606,1704901854246,-500.0,0.00030958,2]
[311089607,1704901854256,-500.0,0.00030958,2]
[311089608,1704901854265,-707.25,0.00030958,2]
[311089609,1704901854275,-500.0,0.00030958,2]
[311089610,1704901854283,-500.0,0.00030958,2]
[311089611,1704901854292,-251.79469013,0.00030958,2]
[311089612,1704901854302,-361.1191654,0.00030958,2]
[311089613,1704901854311,-500.0,0.00030958,2]
[311089614,1704901854320,-520.54,0.00030958,2]
[311089615,1704901854329,-500.0,0.00030958,2]
[311089616,1704901854338,-500.0,0.00030958,2]
[311089617,1704901854347,-500.0,0.00030958,2]
[311089618,1704901854356,-500.0,0.00030958,2]
[311089619,1704901854365,-275.48704754,0.00030958,2]
[311089620,1704901854375,-500.0,0.00030958,2]
[311089621,1704901854384,-500.0,0.00030958,2]
[311089622,1704901854393,-500.0,0.00030958,2]
[311089623,1704901854402,-672.75,0.00030958,2]
[311089624,1704901854411,-528.46,0.00030958,2]
[311089625,1704901854420,-500.0,0.00030958,2]
[311089626,1704901854429,-431.94,0.00030958,2]
[311089627,1704901854438,-150.0,0.00030958,2]
[311089628,1704901854447,-500.0,0.00030958,2]
[311089629,1704901854456,-500.0,0.00030958,2]
[311089630,1704901854465,-224.92795178,0.00030958,2]
[311089631,1704901854475,-500.0,0.00030958,2]
[311089632,1704901854484,-500.0,0.00030958,2]
[311089633,1704901854495,-436.49800374,0.00030958,2]
[311089634,1704901854505,-500.0,0.00030958,2]
[311089635,1704901854514,-500.0,0.00030958,2]
[311089636,1704901854524,-174.08529166,0.00030958,2]
[311089637,1704901854534,-1198.47,0.00030958,2]
[311089638,1704901854543,-500.0,0.00030958,2]
[311089639,1704901854552,-500.0,0.00030958,2]
[311089640,1704901854562,-500.0,0.00030958,2]
[311089641,1704901854571,-632.59,0.00030958,2]
[311089642,1704901854581,-500.0,0.00030958,2]
[311089643,1704901854590,-1056.6,0.00030958,2]
[311089644,1704901854599,-500.0,0.00030958,2]
[311089645,1704901854609,-411.04062058,0.00030958,2]
[311089646,1704901854618,-500.0,0.00030958,2]
[311089647,1704901854627,-500.0,0.00030958,2]
[311089648,1704901854636,-500.0,0.00030958,2]
[311089649,1704901854646,-557.71691204,0.00030958,2]
[311089650,1704901854655,-500.0,0.00030958,2]
[311089651,1704901854664,-500.0,0.00030958,2]
[311089652,1704901854674,-470.60681443,0.00030958,2]
[311089653,1704901854683,-500.0,0.00030958,2]
[311089654,1704901854693,-500.0,0.00030958,2]
[311089655,1704901854702,-500.0,0.00030958,2]
[311089656,1704901854711,-500.0,0.00030958,2]
[311089657,1704901854720,-500.0,0.00030958,2]
[311089658,1704901854729,-283.25459119,0.00030958,2]
[311089659,1704901854738,-500.0,0.00030958,2]
[311089660,1704901854750,-500.0,0.00030958,2]
[311089661,1704901854759,-500.0,0.00030958,2]
[311089662,1704901854769,-586.76,0.00030958,2]
[311089663,1704901854779,-731.92,0.00030958,2]
[311089664,1704901854788,-212.54238492,0.00030958,2]
[311089665,1704901854797,-9210.75,0.00030958,2]
[311089666,1704901854806,-500.0,0.00030958,2]
[311089667,1704901854814,-500.0,0.00030958,2]
[311089668,1704901854824,-500.0,0.00030958,2]
[311089669,1704901854833,-809.77,0.00030958,2]
[311089670,1704901854842,-663.73,0.00030958,2]
[311089671,1704901854852,-500.0,0.00030958,2]
[311089672,1704901854862,-662.54,0.00030958,2]
[311089673,1704901854871,-500.0,0.00030958,2]
[311089674,1704901854881,-500.0,0.00030958,2]
[311089675,1704901854891,-500.0,0.00030958,2]
[311089676,1704901854902,-500.0,0.00030958,2]
[311089677,1704901854911,-6627.1,0.00030958,2]
[311089678,1704901854921,-534.71,0.00030958,2]
[311089679,1704901854930,-1891.17,0.00030958,2]
[311089680,1704901854940,-500.0,0.00030958,2]
[311089681,1704901854951,-1534.85,0.00030958,2]
[311089682,1704901854960,-500.0,0.00030958,2]
[311089683,1704901854970,-2924.88,0.00030958,2]
[311089684,1704901854979,-500.0,0.00030958,2]
[311089685,1704901854989,-500.0,0.00030958,2]
[311089686,1704901855001,-500.0,0.00030958,2]
[311089687,1704901855010,-500.0,0.00030958,2]
[311089688,1704901855019,-765.82,0.00030958,2]
[311089689,1704901855028,-500.0,0.00030958,2]
[311089690,1704901855038,-500.0,0.00030958,2]
[311089691,1704901855047,-500.0,0.00030958,2]
[311089692,1704901855057,-3449.62,0.00030958,2]
[311089693,1704901855067,-500.0,0.00030958,2]
[311089694,1704901855076,-349.46875021,0.00030958,2]
[311089695,1704901855086,-500.0,0.00030958,2]
[311089696,1704901855095,-500.0,0.00030958,2]
[311089697,1704901855105,-750.66,0.00030958,2]
[311089698,1704901855115,-500.0,0.00030958,2]
[311089699,1704901855125,-579.7,0.00030958,2]
[311089700,1704901855135,-959.31,0.00030958,2]
[311089701,1704901855144,-7311.05,0.00030958,2]
[311089702,1704901855154,-500.0,0.00030958,2]
[311089703,1704901855164,-365.83384428,0.00030958,2]
[311089704,1704901855173,-1065.45,0.00030958,2]
[311089705,1704901855183,-1035.64,0.00030958,2]
[311089706,1704901855192,-500.0,0.00030958,2]
[311089707,1704901855202,-500.0,0.00030958,2]
[311089708,1704901855212,-500.0,0.00030958,2]
[311089709,1704901855222,-500.0,0.00030958,2]
[311089710,1704901855231,-2187.38,0.00030958,2]
[311089711,1704901855240,-500.0,0.00030958,2]
[311089712,1704901855253,-702.32,0.00030958,2]
[311089713,1704901855262,-500.0,0.00030958,2]
[311089714,1704901855272,-500.0,0.00030958,2]
[311089715,1704901855281,-500.0,0.00030958,2]
[311089716,1704901855291,-500.0,0.00030958,2]
[311089717,1704901855301,-1173.1,0.00030958,2]
[311089718,1704901855310,-977.57,0.00030958,2]
[311089719,1704901855320,-500.0,0.00030958,2]
[311089720,1704901855330,-500.0,0.00030958,2]
[311089721,1704901855339,-500.0,0.00030958,2]
[311089722,1704901855349,-905.27,0.00030958,2]
[311089723,1704901855359,-520.35285299,0.00030958,2]
[311089724,1704901855368,-2184.67,0.00030958,2]
[311089725,1704901855377,-539.72,0.00030958,2]
[311089726,1704901855387,-500.0,0.00030958,2]
[311089727,1704901855396,-500.0,0.00030958,2]
[311089728,1704901855406,-2851.32,0.00030958,2]
[311089729,1704901855415,-554.29,0.00030958,2]
[311089730,1704901855425,-1084.11,0.00030958,2]
[311089731,1704901855434,-743.97,0.00030958,2]
[311089732,1704901855444,-2290.02,0.00030958,2]
[311089733,1704901855453,-500.0,0.00030958,2]
[311089734,1704901855463,-652.69,0.00030958,2]
[311089735,1704901855473,-500.0,0.00030958,2]
[311089736,1704901855482,-3550.06,0.00030958,2]
[311089737,1704901855491,-741.58,0.00030958,2]
[311089738,1704901855507,-500.0,0.00030958,2]
[311089739,1704901855517,-2468.23,0.00030958,2]
[311089740,1704901855527,-1013.12,0.00030958,2]
[311089741,1704901855537,-2755.49,0.00030958,2]
[311089742,1704901855548,-1367.5,0.00030958,2]
[311089743,1704901855559,-500.0,0.00030958,2]
[311089744,1704901855569,-523.18,0.00030958,2]
[311089745,1704901855580,-606.41,0.00030958,2]
[311089746,1704901855592,-1010.49,0.00030958,2]
[311089747,1704901855603,-1214.0,0.00030958,2]
[311089748,1704901855614,-500.0,0.00030958,2]
[311089749,1704901855625,-500.0,0.00030958,2]
[311089750,1704901855636,-500.0,0.00030958,2]
[311089751,1704901855646,-500.0,0.00030958,2]
[311089752,1704901855656,-1052.82,0.00030958,2]
[311089753,1704901855665,-1111.49,0.00030958,2]
[311089754,1704901855676,-22537.3,0.00030958,2]
[311089755,1704901855685,-652.84,0.00030958,2]
[311089756,1704901855695,-517.3,0.00030958,2]
[311089757,1704901855705,-500.0,0.00030958,2]
[311089758,1704901855716,-1027.93,0.00030958,2]
[311089759,1704901855726,-500.0,0.00030958,2]
[311089760,1704901855737,-500.0,0.00030958,2]
[311089761,1704901855751,-619.25,0.00030958,2]
[311089762,1704901855761,-500.0,0.00030958,2]
[311089763,1704901855772,-500.0,0.00030958,2]
[311089764,1704901855782,-540.69,0.00030958,2]
[311089765,1704901855792,-500.0,0.00030958,2]
[311089766,1704901855803,-500.0,0.00030958,2]
[311089767,1704901855813,-500.0,0.00030958,2]
[311089768,1704901855823,-531.22,0.00030958,2]
[311089769,1704901855834,-822.79,0.00030958,2]
[311089770,1704901855844,-949.96,0.00030958,2]
[311089771,1704901855854,-561.93,0.00030958,2]
[311089772,1704901855864,-841.87,0.00030958,2]
[311089773,1704901855874,-500.0,0.00030958,2]
[311089774,1704901855884,-4149.02,0.00030958,2]
[311089775,1704901855894,-500.0,0.00030958,2]
[311089776,1704901855903,-500.0,0.00030958,2]
[311089777,1704901855914,-500.0,0.00030958,2]
[311089778,1704901855924,-500.0,0.00030958,2]
[311089779,1704901855935,-588.0,0.00030958,2]
[311089780,1704901855945,-1144.17,0.00030958,2]
[311089781,1704901855955,-500.0,0.00030958,2]
[311089782,1704901855966,-1384.54,0.00030958,2]
[311089783,1704901855977,-2853.73,0.00030958,2]
[311089784,1704901855990,-1585.1,0.00030958,2]
[311089785,1704901856004,-565.73,0.00030958,2]
[311089786,1704901856016,-518.12,0.00030958,2]
[311089787,1704901856027,-546.42,0.00030958,2]
[311089788,1704901856037,-500.0,0.00030958,2]
[311089789,1704901856048,-5771.71,0.00030958,2]
[311089790,1704901856059,-1094.06,0.00030958,2]
[311089791,1704901856070,-500.0,0.00030958,2]
[311089792,1704901856080,-1075.13,0.00030958,2]
[311089793,1704901856090,-500.0,0.00030958,2]
[311089794,1704901856100,-500.0,0.00030958,2]
[311089795,1704901856110,-1529.8,0.00030958,2]
[311089796,1704901856120,-704.92,0.00030958,2]
[311089797,1704901856130,-6554.84,0.00030958,2]
[311089798,1704901856140,-500.0,0.00030958,2]
[311089799,1704901856150,-500.0,0.00030958,2]
[311089800,1704901856160,-500.0,0.00030958,2]
[311089801,1704901856169,-500.0,0.00030958,2]
[311089802,1704901856179,-515.73,0.00030958,2]
[311089803,1704901856190,-606.81,0.00030958,2]
[311089804,1704901856200,-500.0,0.00030958,2]
[311089805,1704901856210,-3847.89,0.00030958,2]
[311089806,1704901856222,-500.0,0.00030958,2]
[311089807,1704901856233,-1237.27,0.00030958,2]
[311089808,1704901856243,-1873.06,0.00030958,2]
[311089809,1704901856258,-500.0,0.00030958,2]
[311089810,1704901856268,-722.18,0.00030958,2]
[311089811,1704901856278,-342.7726124,0.00030958,2]
[311089812,1704901856292,-682.55,0.00030958,2]
[311089813,1704901856302,-890.2,0.00030958,2]
[311089814,1704901856313,-1162.53,0.00030958,2]
[311089815,1704901856326,-500.0,0.00030958,2]
[311089816,1704901856336,-500.0,0.00030958,2]
[311089817,1704901856346,-500.0,0.00030958,2]
[311089818,1704901856357,-1171.63,0.00030958,2]
[311089819,1704901856367,-589.12,0.00030958,2]
[311089820,1704901856377,-1149.89,0.00030958,2]
[311089821,1704901856387,-838.5,0.00030958,2]
[311089822,1704901856397,-1201.37,0.00030958,2]
[311089823,1704901856407,-1798.18,0.00030958,2]
[311089824,1704901856417,-596.51,0.00030958,2]
[311089825,1704901856427,-1002.66,0.00030958,2]
[311089826,1704901856437,-1893.93,0.00030958,2]
[311089827,1704901856447,-860.47,0.00030958,2]
[311089828,1704901856457,-500.0,0.00030958,2]
[311089829,1704901856467,-500.0,0.00030958,2]
[311089830,1704901856476,-633.99,0.00030958,2]
[311089831,1704901856486,-542.38,0.00030958,2]
[311089832,1704901856495,-500.0,0.00030958,2]
[311089833,1704901856507,-3386.41,0.00030958,2]
[311089834,1704901856517,-756.19,0.00030958,2]
[311089835,1704901856527,-500.0,0.00030958,2]
[311089836,1704901856536,-500.0,0.00030958,2]
[311089837,1704901856546,-816.45,0.00030958,2]
[311089838,1704901856557,-500.0,0.00030958,2]
[311089839,1704901856567,-3242.4,0.00030958,2]
[311089840,1704901856577,-500.0,0.00030958,2]
[311089841,1704901856587,-500.0,0.00030958,2]
[311089842,1704901856598,-1694.82,0.00030958,2]
[311089843,1704901856608,-500.0,0.00030958,2]
[311089844,1704901856618,-1281.58,0.00030958,2]
[311089845,1704901856627,-500.0,0.00030958,2]
[311089846,1704901856638,-200.0,0.00030982,3]
[311089847,1704901856647,-500.0,0.00030999,4]
[311089848,1704901856657,-439.16917918,0.00030999,4]
[311089849,1704901856667,-500.0,0.00030999,4]
[311089850,1704901856677,-150.03031517,0.00030999,4]
[311089851,1704901856687,-500.0,0.00030999,4]
[311089852,1704901856697,-500.0,0.00030999,4]
[311089853,1704901856706,-209.00258059,0.00030999,4]
[311089854,1704901856716,-165.85272801,0.00030999,4]
[311089855,1704901856726,-500.0,0.00030999,4]
[311089856,1704901856735,-500.0,0.00030999,4]
[311089857,1704901856747,-500.0,0.00030999,4]
[311089858,1704901856759,-500.0,0.00030999,4]
[311089859,1704901856769,-500.0,0.00030999,4]
[311089860,1704901856778,-500.0,0.00030999,4]
[311089861,1704901856788,-605.4926783,0.00030999,4]
[311089862,1704901856798,-500.0,0.00030999,4]
[311089863,1704901856808,-500.0,0.00030999,4]
[311089864,1704901856818,-500.0,0.00030999,4]
[311089865,1704901856828,-500.0,0.00030999,4]
[311089866,1704901856838,-50000.0,0.00031,2]
[311089867,1704901856848,-10028.61,0.00031,3]
[311089868,1704901856858,-500.0,0.00031,3]
[311089869,1704901856869,-200.0,0.00031,2]
[311089870,1704901856879,-973.5,0.00031,3]
[311089871,1704901856889,-634.4032601,0.00031026,5]
[311089872,1704901856900,-153.84,0.0003105,2]
[311089873,1704901856911,-4153.62529529,0.00031075,2]
[311089874,1704901856922,-1629.14913512,0.00031075,2]
[311089875,1704901856933,-500.0,0.00031137,2]
[311089876,1704901856943,-247.22115209,0.00031175,2]
[311089877,1704901856954,-152.0,0.00031185,3]
[311089878,1704901856964,-1000.0,0.000312,2]
[311089879,1704901856975,-938.82,0.00031203,2]
[311089880,1704901856986,-409.57,0.00031203,2]
[311089881,1704901856996,-563.83,0.00031227,2]
[311089882,1704901857009,-500.0,0.00031232,2]
[311089883,1704901857019,-500.0,0.00031232,2]
[311089884,1704901857271,-500.0,0.00031232,2]
[311089885,1704901857281,-580.78,0.00031232,2]
[311089886,1704901857290,-500.0,0.00031232,2]
[311089887,1704901857299,-500.0,0.00031232,2]
[311089888,1704901857309,-500.0,0.00031232,2]
[311089889,1704901857318,-500.0,0.00031232,2]
[311089890,1704901857328,-611.75872185,0.00031232,2]
[311089891,1704901857338,-500.0,0.00031232,2]
[311089892,1704901857348,-500.0,0.00031232,2]
[311089893,1704901857358,-500.0,0.00031232,2]
[311089894,1704901857367,-624.51,0.00031232,2]
[311089895,1704901857377,-769.6,0.00031232,2]
[311089896,1704901857387,-500.0,0.00031232,2]
[311089897,1704901857396,-646.9,0.00031232,2]
[311089898,1704901857406,-500.0,0.00031232,2]